[Event "FIDE Women Candidates 2026"]
[White "Assaubayeva,Bibisara"]
[Black "Zhu,Jiner"]
[Site "Agios Georgios Pegeia"]
[Round "10.2"]
[Annotator "RC"]
[Result "1-0"]
[Date "2026.04.09"]
[WhiteElo "2516"]
[BlackElo "2578"]
[PlyCount "119"]
[TimeControl "60"]

1. d4 {[%emt 0:0:4]} Nf6 {[%emt 0:0:7]} 2. c4 {[%emt 0:0:5]} e6 {[%emt 0:0:5]} 3. Nf3 {[%emt 0:0:5]} d5 {[%emt 0:0:8]} 4. Nc3 {[%emt 0:0:6]} c6 {[%emt 0:0:17]} 5. Bg5 {[%emt 0:0:7]} h6 {[%emt 0:0:12]} 6. Bxf6 {[%emt 0:0:6]} Qxf6 {[%emt 0:0:4]} 7. a3 {[%emt 0:2:1]} dxc4 {[%emt 0:2:43]} 8. e3 {[%emt 0:0:42]} g6 {[%emt 0:14:57]} 9. Bxc4 {[%emt 0:1:45]} Bg7 {[%emt 0:0:6]} 10. O-O {[%emt 0:4:36]} O-O {[%emt 0:0:8]} 11. Ne5 {[%emt 0:2:48]} c5 {[%emt 0:1:6]} 12. Ne4 {[%emt 0:8:56]} Qe7 {[%emt 0:0:42]} 13. Qf3 {[%emt 0:3:43]} cxd4 {[%emt 0:6:55]} 14. exd4 {[%emt 0:0:6]} Nc6 {[%emt 0:2:3]} 15. Nxc6 {[%emt 0:1:49]} bxc6 {[%emt 0:0:6]} 16. Rad1 {[%emt 0:1:33]} Rd8 {[%emt 0:1:11]} 17. Qe3 {[%emt 0:0:34]} a5 {[%emt 0:0:23]} 18. Nc5 {[%emt 0:10:28]} Qd6 {[%emt 0:1:26]} 19. Ne4 {[%emt 0:1:1]} Qe7 {[%emt 0:0:9]} 20. Nc5 {[%emt 0:4:46]} Qd6 {[%emt 0:0:7]} 21. Ne4 {[%emt 0:4:10]} Qb8 {[%emt 0:8:41]} 22. Rd2 {[%emt 0:0:27]} Ba6 {[%emt 0:0:29]} 23. Rc1 {[%emt 0:1:2]} Bxc4 {[%emt 0:2:56]} 24. Rxc4 {[%emt 0:0:2]} Ra6 {[%emt 0:3:36]} 25. g3 {[%emt 0:3:38]} Rb6 {[%emt 0:2:41]} 26. Qc3 {[%emt 0:5:40]} Rd5 {[%emt 0:3:13]} 27. Nc5 {[%emt 0:13:10]} h5 {[%emt 0:10:46]} 28. h4 {[%emt 0:3:45]} e5 {[%emt 0:9:1]} 29. Qxa5 {[%emt 0:4:43]} exd4 {[%emt 0:12:39]} 30. b4 {[%emt 0:3:32]} Rb5 {[%emt 0:6:35]} 31. Qa4 {[%emt 0:0:43]} Qe8 {[%emt 0:0:25]} 32. Qd1 {[%emt 0:0:39]} Re5 {[%emt 0:0:37]} 33. Kg2 {[%emt 0:4:10]} Re1 {[%emt 0:4:12]} 34. Qf3 {[%emt 0:0:12]} Rb8 {[%emt 0:0:21]} 35. a4 {[%emt 0:3:51]} Rd8 {[%emt 0:5:46]} 36. a5 {[%emt 0:3:55]} Rd5 {[%emt 0:0:23]} 37. Nd3 {[%emt 0:0:56]} Ra1 {[%emt 0:0:12]} 38. Re2 {[%emt 0:2:1]} Qd7 {[%emt 0:0:11]} 39. Rec2 {[%emt 0:2:34]} Ra3 {[%emt 0:2:34]} 40. Rxc6 {[%emt 0:1:53]} Rc3 {[%emt 0:0:8]} 41. R6xc3 {[%emt 0:31:52]} dxc3 {[%emt 0:30:7]} 42. Nc5 {[%emt 0:0:54]} Qd8 {[%emt 0:0:0]} 43. a6 {[%emt 0:0:0]} Rd1 {[%emt 0:0:0]} 44. Nb3 {[%emt 0:0:0]} Rd3 {[%emt 0:0:0]} 45. Qe4 {[%emt 0:0:0]} f5 {[%emt 0:0:0]} 46. Qb7 {[%emt 0:0:0]} Rd7 {[%emt 0:0:0]} 47. Qc6 {[%emt 0:0:0]} Rd6 {[%emt 0:0:0]} 48. Qc4+ {[%emt 0:0:0]} Kh7 {[%emt 0:0:0]} 49. b5 {[%emt 0:0:0]} Qa8+ {[%emt 0:0:0]} 50. Kh2 {[%emt 0:0:0]} Rd1 {[%emt 0:0:0]} 51. Qc6 {[%emt 0:0:0]} Qa7 {[%emt 0:0:0]} 52. Ra2 {[%emt 0:0:0]} f4 {[%emt 0:0:0]} 53. b6 {[%emt 0:0:0]} Qe7 {[%emt 0:0:0]} 54. a7 {[%emt 0:0:4]} fxg3+ {[%emt 0:0:0]} 55. fxg3 {[%emt 0:0:6]} Be5 {[%emt 0:0:0]} 56. Kg2 {[%emt 0:2:11]} Rd3 {[%emt 0:0:17]} 57. a8=Q {[%emt 0:0:28]} Rxg3+ {[%emt 0:0:5]} 58. Kf1 {[%emt 0:0:5]} Qf7+ {[%emt 0:0:29]} 59. Rf2 {[%emt 0:0:15]} Qxb3 {[%emt 0:0:10]} 60. Qd7+ {[%emt 0:0:34]} 1-0

[Event "FIDE Women Candidates 2026"]
[White "Divya Deshmukh"]
[Black "Goryachkina,Aleksandra"]
[Site "Agios Georgios Pegeia"]
[Round "10.3"]
[Annotator "RC"]
[Result "0-1"]
[Date "2026.04.09"]
[WhiteElo "2497"]
[BlackElo "2534"]
[PlyCount "125"]
[TimeControl "60"]

1. e4 {[%emt 0:0:5]} e5 {[%emt 0:0:7]} 2. Nf3 {[%emt 0:0:4]} Nc6 {[%emt 0:0:5]} 3. Bb5 {[%emt 0:0:4]} a6 {[%emt 0:0:15]} 4. Ba4 {[%emt 0:0:4]} Nf6 {[%emt 0:0:7]} 5. O-O {[%emt 0:0:25]} Be7 {[%emt 0:0:23]} 6. d3 {[%emt 0:0:32]} b5 {[%emt 0:0:23]} 7. Bb3 {[%emt 0:0:2]} d6 {[%emt 0:0:16]} 8. c3 {[%emt 0:0:37]} O-O {[%emt 0:0:24]} 9. Re1 {[%emt 0:0:27]} Na5 {[%emt 0:0:43]} 10. Bc2 {[%emt 0:0:7]} c5 {[%emt 0:0:26]} 11. h3 {[%emt 0:0:44]} h6 {[%emt 0:13:44]} 12. d4 {[%emt 0:5:18]} cxd4 {[%emt 0:9:56]} 13. cxd4 {[%emt 0:0:3]} Qc7 {[%emt 0:5:1]} 14. Nbd2 {[%emt 0:12:26]} Bd7 {[%emt 0:5:34]} 15. Nf1 {[%emt 0:12:3]} Nc6 {[%emt 0:9:9]} 16. d5 {[%emt 0:5:8]} Nb4 {[%emt 0:0:49]} 17. Bb1 {[%emt 0:0:14]} a5 {[%emt 0:1:18]} 18. Be3 {[%emt 0:6:29]} Rfc8 {[%emt 0:2:31]} 19. Qd2 {[%emt 0:6:25]} Na6 {[%emt 0:8:12]} 20. Bd3 {[%emt 0:3:15]} Nc5 {[%emt 0:2:15]} 21. Rac1 {[%emt 0:5:22]} Qb8 {[%emt 0:0:13]} 22. Ng3 {[%emt 0:1:59]} Nxd3 {[%emt 0:1:20]} 23. Qxd3 {[%emt 0:0:5]} Qb7 {[%emt 0:1:21]} 24. Qd2 {[%emt 0:2:14]} Kh7 {[%emt 0:2:43]} 25. Rxc8 {[%emt 0:6:40]} Qxc8 {[%emt 0:0:44]} 26. Rc1 {[%emt 0:1:7]} Qb7 {[%emt 0:3:17]} 27. Ne1 {[%emt 0:4:38]} Bd8 {[%emt 0:1:58]} 28. f4 {[%emt 0:2:42]} exf4 {[%emt 0:3:1]} 29. Bxf4 {[%emt 0:0:2]} Bb6+ {[%emt 0:3:6]} 30. Kh1 {[%emt 0:1:58]} Re8 {[%emt 0:0:46]} 31. Bxd6 {[%emt 0:14:7]} Nxe4 {[%emt 0:0:44]} 32. Nxe4 {[%emt 0:0:18]} Rxe4 {[%emt 0:0:2]} 33. Qd3 {[%emt 0:1:5]} f5 {[%emt 0:2:10]} 34. Nf3 {[%emt 0:0:8]} Qa8 {[%emt 0:2:25]} 35. Bc7 {[%emt 0:3:26]} Rc4 {[%emt 0:8:46]} 36. Rxc4 {[%emt 0:2:57]} bxc4 {[%emt 0:0:1]} 37. Qxc4 {[%emt 0:0:1]} Bxc7 {[%emt 0:0:9]} 38. Qxc7 {[%emt 0:0:4]} Qxd5 {[%emt 0:0:4]} 39. b3 {[%emt 0:1:7]} Bc6 {[%emt 0:0:37]} 40. Kh2 {[%emt 0:4:20]} Qe4 {[%emt 0:1:41]} 41. Qd6 {[%emt 0:12:3]} Bb7 {[%emt 0:7:43]} 42. Qe5 {[%emt 0:7:58]} Bd5 {[%emt 0:14:1]} 43. Qxe4 {[%emt 0:1:33]} Bxe4 {[%emt 0:0:28]} 44. Nd2 {[%emt 0:7:42]} Bd5 {[%emt 0:0:17]} 45. a3 {[%emt 0:0:54]} Kg6 {[%emt 0:0:38]} 46. b4 {[%emt 0:0:27]} a4 {[%emt 0:3:36]} 47. b5 {[%emt 0:0:42]} Kf6 {[%emt 0:0:9]} 48. b6 {[%emt 0:0:44]} Ke6 {[%emt 0:2:27]} 49. Nc4 {[%emt 0:1:52]} Kd7 {[%emt 0:0:13]} 50. Ne5+ {[%emt 0:1:35]} Kd6 {[%emt 0:1:31]} 51. Nd3 {[%emt 0:0:1]} g5 {[%emt 0:2:57]} 52. Kg3 {[%emt 0:0:39]} Be4 {[%emt 0:1:56]} 53. Nb2 {[%emt 0:0:2]} Bc2 {[%emt 0:0:13]} 54. Nc4+ {[%emt 0:0:40]} Kc6 {[%emt 0:0:13]} 55. Kf2 {[%emt 0:0:27]} f4 {[%emt 0:2:42]} 56. g3 {[%emt 0:0:26]} fxg3+ {[%emt 0:2:49]} 57. Kxg3 {[%emt 0:0:2]} Bb3 {[%emt 0:0:22]} 58. Nb2 {[%emt 0:2:14]} h5 {[%emt 0:1:1]} 59. Kf3 {[%emt 0:0:16]} Kxb6 {[%emt 0:0:24]} 60. Ke4 {[%emt 0:0:13]} Bc2+ {[%emt 0:4:40]} 61. Kd4 {[%emt 0:0:1]} Kc7 {[%emt 0:1:57]} 62. Kd5 {[%emt 0:1:35]} g4 {[%emt 0:2:6]} 63. Kd4 {[%emt 0:0:9]} 0-1

[Event "FIDE Women Candidates 2026"]
[White "Lagno,Kateryna"]
[Black "Tan,Zhongyi"]
[Site "Agios Georgios Pegeia"]
[Round "10.4"]
[Annotator "RC"]
[Result "1/2-1/2"]
[Date "2026.04.09"]
[WhiteElo "2508"]
[BlackElo "2535"]
[PlyCount "106"]
[TimeControl "60"]

1. e4 {[%emt 0:0:3]} c5 {[%emt 0:0:5]} 2. Nf3 {[%emt 0:0:6]} a6 {[%emt 0:0:4]} 3. c4 {[%emt 0:2:30]} Nc6 {[%emt 0:0:14]} 4. d4 {[%emt 0:0:39]} cxd4 {[%emt 0:0:6]} 5. Nxd4 {[%emt 0:0:2]} e5 {[%emt 0:0:7]} 6. Nf5 {[%emt 0:7:30]} d5 {[%emt 0:1:42]} 7. cxd5 {[%emt 0:0:40]} Bxf5 {[%emt 0:0:6]} 8. exf5 {[%emt 0:0:28]} Nd4 {[%emt 0:0:4]} 9. Nc3 {[%emt 0:5:19]} Nf6 {[%emt 0:0:24]} 10. Bd3 {[%emt 0:1:41]} Be7 {[%emt 0:4:18]} 11. O-O {[%emt 0:4:13]} O-O {[%emt 0:1:33]} 12. Re1 {[%emt 0:3:58]} Nxd5 {[%emt 0:0:7]} 13. Be4 {[%emt 0:8:50]} Nf6 {[%emt 0:11:19]} 14. Bxb7 {[%emt 0:1:14]} Ra7 {[%emt 0:0:6]} 15. Be4 {[%emt 0:9:3]} Nxe4 {[%emt 0:12:40]} 16. Rxe4 {[%emt 0:2:1]} Nxf5 {[%emt 0:2:12]} 17. Qxd8 {[%emt 0:1:40]} Rxd8 {[%emt 0:0:25]} 18. Rxe5 {[%emt 0:0:31]} Bf6 {[%emt 0:14:21]} 19. Rd5 {[%emt 0:15:59]} Rad7 {[%emt 0:7:24]} 20. Rxd7 {[%emt 0:0:6]} Rxd7 {[%emt 0:0:3]} 21. Kf1 {[%emt 0:0:14]} Bxc3 {[%emt 0:13:53]} 22. bxc3 {[%emt 0:0:5]} Rd3 {[%emt 0:0:26]} 23. Bb2 {[%emt 0:15:0]} Rd2 {[%emt 0:0:27]} 24. Ba3 {[%emt 0:2:2]} f6 {[%emt 0:6:10]} 25. Bb4 {[%emt 0:0:37]} Kf7 {[%emt 0:1:28]} 26. a4 {[%emt 0:0:34]} Ne7 {[%emt 0:3:19]} 27. Ke1 {[%emt 0:5:9]} Rb2 {[%emt 0:1:36]} 28. Rd1 {[%emt 0:0:5]} Nc6 {[%emt 0:0:50]} 29. Rd7+ {[%emt 0:0:24]} Kg8 {[%emt 0:1:18]} 30. Rd6 {[%emt 0:1:7]} Nxb4 {[%emt 0:5:23]} 31. cxb4 {[%emt 0:0:5]} Rxb4 {[%emt 0:0:6]} 32. Rxa6 {[%emt 0:0:29]} Rb2 {[%emt 0:0:59]} 33. h4 {[%emt 0:3:8]} h5 {[%emt 0:0:17]} 34. a5 {[%emt 0:1:36]} Ra2 {[%emt 0:0:5]} 35. Ra8+ {[%emt 0:1:12]} Kf7 {[%emt 0:0:11]} 36. g3 {[%emt 0:0:26]} g5 {[%emt 0:0:23]} 37. hxg5 {[%emt 0:1:41]} fxg5 {[%emt 0:0:5]} 38. f3 {[%emt 0:2:10]} g4 {[%emt 0:4:5]} 39. f4 {[%emt 0:0:44]} h4 {[%emt 0:0:48]} 40. gxh4 {[%emt 0:2:57]} g3 {[%emt 0:0:5]} 41. Kf1 {[%emt 0:30:14]} Rf2+ {[%emt 0:31:20]} 42. Kg1 {[%emt 0:0:4]} Rxf4 {[%emt 0:0:5]} 43. h5 {[%emt 0:0:0]} Ra4 {[%emt 0:0:0]} 44. Ra7+ {[%emt 0:0:0]} Kg8 {[%emt 0:0:0]} 45. Kg2 {[%emt 0:0:0]} Ra3 {[%emt 0:0:0]} 46. Kh3 {[%emt 0:0:0]} Kh8 {[%emt 0:0:0]} 47. h6 {[%emt 0:0:0]} Kg8 {[%emt 0:0:0]} 48. Rg7+ {[%emt 0:0:0]} Kh8 {[%emt 0:0:0]} 49. Rg5 {[%emt 0:0:0]} Kh7 {[%emt 0:0:0]} 50. Rh5 {[%emt 0:0:0]} Rb3 {[%emt 0:0:0]} 51. Kg2 {[%emt 0:0:0]} Ra3 {[%emt 0:0:0]} 52. Kh3 {[%emt 0:0:0]} Rb3 {[%emt 0:0:0]} 53. Rg5 {[%emt 0:0:0]} Ra3 {[%emt 0:0:0]} 1/2-1/2

[Event "FIDE Women Candidates 2026"]
[White "Goryachkina,Aleksandra"]
[Black "Vaishali,Rameshbabu"]
[Site "Agios Georgios Pegeia"]
[Round "11.1"]
[Annotator "ChessBase"]
[Result "0-1"]
[Date "2026.04.11"]
[WhiteElo "2534"]
[BlackElo "2470"]
[PlyCount "90"]
[TimeControl "60"]

1. d4 {[%emt 0:0:7]} d5 {[%emt 0:0:22]} 2. Nf3 {[%emt 0:0:19]} Nf6 {[%emt 0:0:6]} 3. c3 {[%emt 0:0:11]} e6 {[%emt 0:0:11]} 4. Bf4 {[%emt 0:1:12]} c5 {[%emt 0:0:26]} 5. e3 {[%emt 0:0:52]} Qb6 {[%emt 0:2:11]} 6. Qb3 {[%emt 0:2:38]} Bd7 {[%emt 0:14:19]} 7. Nbd2 {[%emt 0:4:40]} Be7 {[%emt 0:7:18]} 8. Be2 {[%emt 0:2:54]} O-O {[%emt 0:1:48]} 9. O-O {[%emt 0:9:29]} Rc8 {[%emt 0:5:49]} 10. Ne5 {[%emt 0:5:39]} Be8 {[%emt 0:1:0]} 11. Bg5 {[%emt 0:14:9]} Nc6 {[%emt 0:2:36]} 12. f4 {[%emt 0:2:31]} Na5 {[%emt 0:28:13]} 13. Qxb6 {[%emt 0:1:41]} axb6 {[%emt 0:0:49]} 14. f5 {[%emt 0:0:23]} h6 {[%emt 0:1:21]} 15. Bh4 {[%emt 0:1:49]} exf5 {[%emt 0:1:26]} 16. Rxf5 {[%emt 0:2:27]} Nc6 {[%emt 0:5:12]} 17. a3 {[%emt 0:3:14]} Bd8 {[%emt 0:6:38]} 18. Raf1 {[%emt 0:15:55]} Nxe5 {[%emt 0:3:51]} 19. Rxe5 {[%emt 0:2:43]} Bc6 {[%emt 0:1:0]} 20. Ref5 {[%emt 0:3:20]} Rc7 {[%emt 0:0:49]} 21. h3 {[%emt 0:6:19]} Rd7 {[%emt 0:1:57]} 22. Bg3 {[%emt 0:3:16]} Bc7 {[%emt 0:2:16]} 23. Bxc7 {[%emt 0:2:32]} Rxc7 {[%emt 0:0:2]} 24. Re5 {[%emt 0:1:25]} Re8 {[%emt 0:0:58]} 25. Rff5 {[%emt 0:0:28]} Rxe5 {[%emt 0:3:21]} 26. Rxe5 {[%emt 0:1:9]} g6 {[%emt 0:0:11]} 27. dxc5 {[%emt 0:3:23]} bxc5 {[%emt 0:0:4]} 28. c4 {[%emt 0:0:22]} Kf8 {[%emt 0:1:51]} 29. cxd5 {[%emt 0:0:47]} Bxd5 {[%emt 0:0:33]} 30. Bc4 {[%emt 0:2:53]} Bc6 {[%emt 0:1:4]} 31. Rxc5 {[%emt 0:3:57]} b6 {[%emt 0:0:2]} 32. Rxc6 {[%emt 0:1:3]} Rxc6 {[%emt 0:0:2]} 33. Bb5 {[%emt 0:0:54]} Rc2 {[%emt 0:2:21]} 34. Nc4 {[%emt 0:0:9]} Nd5 {[%emt 0:0:35]} 35. b3 {[%emt 0:0:48]} Rc3 {[%emt 0:1:24]} 36. Ba4 {[%emt 0:0:38]} Nxe3 {[%emt 0:3:31]} 37. Nxb6 {[%emt 0:0:6]} Rc2 {[%emt 0:0:5]} 38. Bb5 {[%emt 0:1:19]} Rxg2+ {[%emt 0:0:3]} 39. Kh1 {[%emt 0:0:3]} Rb2 {[%emt 0:1:20]} 40. Nd7+ {[%emt 0:1:25]} Ke7 {[%emt 0:0:18]} 41. Nc5 {[%emt 0:30:11]} Kd6 {[%emt 0:31:44]} 42. Nb7+ {[%emt 0:0:0]} Kd5 {[%emt 0:0:0]} 43. b4 {[%emt 0:0:0]} Ke4 {[%emt 0:0:0]} 44. Nc5+ {[%emt 0:0:0]} Kf3 {[%emt 0:0:0]} 45. Bd3 {[%emt 0:0:0]} f5 {[%emt 0:0:0]} 0-1

[Event "FIDE Women Candidates 2026"]
[White "Lagno,Kateryna"]
[Black "Muzychuk,Anna"]
[Site "Agios Georgios Pegeia"]
[Round "11.2"]
[Annotator "ChessBase"]
[Result "1/2-1/2"]
[Date "2026.04.11"]
[WhiteElo "2508"]
[BlackElo "2522"]
[PlyCount "98"]
[TimeControl "60"]

1. d4 {[%emt 0:0:7]} Nf6 {[%emt 0:0:20]} 2. c4 {[%emt 0:0:12]} e6 {[%emt 0:0:14]} 3. Nf3 {[%emt 0:0:19]} b6 {[%emt 0:3:39]} 4. g3 {[%emt 0:0:34]} Bb4+ {[%emt 0:3:56]} 5. Bd2 {[%emt 0:2:18]} Bxd2+ {[%emt 0:1:5]} 6. Qxd2 {[%emt 0:0:27]} Bb7 {[%emt 0:7:5]} 7. Bg2 {[%emt 0:0:47]} O-O {[%emt 0:1:13]} 8. Nc3 {[%emt 0:6:17]} d5 {[%emt 0:3:15]} 9. Ne5 {[%emt 0:3:21]} Nbd7 {[%emt 0:3:32]} 10. O-O {[%emt 0:3:23]} Qe7 {[%emt 0:8:19]} 11. Qc2 {[%emt 0:13:20]} Rfd8 {[%emt 0:2:1]} 12. Rad1 {[%emt 0:2:37]} c5 {[%emt 0:10:56]} 13. cxd5 {[%emt 0:8:18]} exd5 {[%emt 0:0:42]} 14. Nxd7 {[%emt 0:11:41]} Rxd7 {[%emt 0:0:2]} 15. Rfe1 {[%emt 0:0:32]} Re8 {[%emt 0:5:37]} 16. e3 {[%emt 0:4:19]} h6 {[%emt 0:4:38]} 17. b3 {[%emt 0:5:44]} Red8 {[%emt 0:6:45]} 18. Bh3 {[%emt 0:5:53]} Rc7 {[%emt 0:0:8]} 19. Nb5 {[%emt 0:0:28]} Bc8 {[%emt 0:0:8]} 20. Bg2 {[%emt 0:0:34]} Rc6 {[%emt 0:1:10]} 21. Qb2 {[%emt 0:11:6]} Bg4 {[%emt 0:6:38]} 22. Rc1 {[%emt 0:0:22]} a6 {[%emt 0:2:17]} 23. Nc3 {[%emt 0:0:23]} cxd4 {[%emt 0:2:36]} 24. exd4 {[%emt 0:1:18]} Qc7 {[%emt 0:2:37]} 25. Ne2 {[%emt 0:5:34]} Bxe2 {[%emt 0:3:6]} 26. Rxc6 {[%emt 0:0:4]} Qxc6 {[%emt 0:0:5]} 27. Qxe2 {[%emt 0:0:14]} Re8 {[%emt 0:7:32]} 28. Qd2 {[%emt 0:0:5]} Rxe1+ {[%emt 0:0:7]} 29. Qxe1 {[%emt 0:0:2]} Qc2 {[%emt 0:0:14]} 30. h3 {[%emt 0:0:47]} a5 {[%emt 0:4:38]} 31. Qe5 {[%emt 0:3:0]} Qc1+ {[%emt 0:7:50]} 32. Bf1 {[%emt 0:1:48]} Qc6 {[%emt 0:0:9]} 33. Bd3 {[%emt 0:0:58]} g6 {[%emt 0:0:13]} 34. Be2 {[%emt 0:3:13]} Qe6 {[%emt 0:2:26]} 35. Bf3 {[%emt 0:0:52]} Kg7 {[%emt 0:1:0]} 36. Kg2 {[%emt 0:0:38]} Qxe5 {[%emt 0:0:34]} 37. dxe5 {[%emt 0:0:6]} Nd7 {[%emt 0:0:2]} 38. Bxd5 {[%emt 0:0:10]} Nxe5 {[%emt 0:0:1]} 39. f4 {[%emt 0:0:21]} Nd3 {[%emt 0:0:34]} 40. a3 {[%emt 0:3:1]} Ne1+ {[%emt 0:0:55]} 41. Kf2 {[%emt 0:31:4]} Nc2 {[%emt 0:2:52]} 42. a4 {[%emt 0:0:0]} f5 {[%emt 0:12:20]} 43. Ke2 {[%emt 0:0:0]} Nb4 {[%emt 0:0:27]} 44. Bc4 {[%emt 0:0:0]} Kf6 {[%emt 0:0:46]} 45. Ke3 {[%emt 0:0:0]} Ke7 {[%emt 0:0:58]} 46. Kd4 {[%emt 0:0:0]} Nc6+ {[%emt 0:0:12]} 47. Kd5 {[%emt 0:0:0]} Nb4+ {[%emt 0:0:3]} 48. Kd4 {[%emt 0:0:0]} Nc6+ {[%emt 0:0:5]} 49. Kd5 {[%emt 0:0:0]} Nb4+ {[%emt 0:0:9]} 1/2-1/2

[Event "FIDE Women Candidates 2026"]
[White "Zhu,Jiner"]
[Black "Divya Deshmukh"]
[Site "Agios Georgios Pegeia"]
[Round "11.3"]
[Annotator "TA"]
[Result "1/2-1/2"]
[Date "2026.04.11"]
[WhiteElo "2578"]
[BlackElo "2497"]
[PlyCount "94"]
[TimeControl "60"]

{[%evp 14,94,36,26,29,30,45,44,49,30,33,33,39,7,16,11,22,19,14,19,23,17,27,15,20,11,39,21,34,18,31,8,14,7,7,7,8,2,12,0,0,-5,0,0,0,-12,0,-3,0,-16,0,0,0,0,0,0,0,0,0,0,0,0,0,0,0,-83,-73,-69,-69,-77,-68,-60,-8,-6,0,0,0,0,0,0,0,-7,0]} 1. e4 {[%emt 0:0:7]} c5 {[%emt 0:0:6]} 2. Nf3 {[%emt 0:0:7]} Nc6 {[%emt 0:0:7]} 3. Bb5 {[%emt 0:0:10]} d6 {[%emt 0:0:6]} 4. O-O {[%emt 0:0:26]} Bd7 {[%emt 0:0:9]} 5. Re1 {[%emt 0:0:12]} a6 {[%emt 0:0:9]} 6. Bxc6 {[%emt 0:0:37]} Bxc6 {[%emt 0:0:4]} 7. d4 {[%emt 0:0:7]} cxd4 {[%emt 0:0:3]} 8. Nxd4 {[%emt 0:0:5]} Rc8 {[%emt 0:0:1] B51: Sicilian: Moscow Variation (3 Bb5+) without 3...Bd7.} 9. c4 {[%emt 0:9:8]} g6 $1 {[%emt 0:0:44] 9...g6 is better than 9...Nf6.} 10. b3 {[%emt 0:11:16]} Nf6 {[%emt 0:0:30] White is slightly better.} 11. Nxc6 {[%emt 0:0:20]} Rxc6 {[%emt 0:0:12]} 12. Bb2 {[%emt 0:0:9]} Bg7 {[%emt 0:0:5]} 13. Nc3 {[%emt 0:1:28][%cal Bb1c3,Bc3d5,Bd5b4][%mdl 32]} O-O {[%emt 0:0:15]} 14. Nd5 {[%emt 0:3:23]} e6 {[%emt 0:4:17]} 15. Nb4 {[%emt 0:16:58][%cal Oe4e5] [#]} Rc8 {[%emt 0:12:13]} 16. Qf3 {[%emt 0:0:22]} Qe7 $146 {[%emt 0:1:38]} ({Predecessor:} 16... Qa5 17. Nd3 Qh5 18. Qf4 Qg4 19. Qe3 b5 20. cxb5 axb5 21. h3 Qh4 22. Qf3 d5 23. exd5 Nxd5 24. Re4 Qg5 25. Bxg7 Kxg7 26. Nb4 Rc1+ {½-½ Cornette,M (2548)-Karason,A (2253) ISL-chT 1415 2014 (6.3)} )17. Rad1 {[%emt 0:1:31]} Rfd8 {[%emt 0:1:28]} 18. h3 {[%emt 0:12:11]} Ne8 {[%emt 0:13:6]} 19. Bxg7 {[%emt 0:0:24]} Nxg7 {[%emt 0:0:10]} 20. Qc3 {[%emt 0:2:59]} Qc7 {[%emt 0:11:27]} 21. a4 {[%emt 0:2:37]} Qa5 {[%emt 0:9:34]} 22. Qd2 {[%emt 0:5:49]} Ne8 {[%emt 0:9:13]} 23. Nc2 {[%emt 0:9:51]} Qxd2 {[%emt 0:0:21]} 24. Rxd2 {[%emt 0:0:4]} Kf8 {[%emt 0:0:8]} 25. Red1 {[%emt 0:0:48]} Ke7 {[%emt 0:0:23]} 26. Ne3 {[%emt 0:0:26]} h5 {[%emt 0:5:44]} 27. h4 {[%emt 0:0:54]} Nf6 {[%emt 0:9:55]} 28. f3 {[%emt 0:0:7]} Nd7 {[%emt 0:0:58]} 29. Kf2 {[%emt 0:3:50]} Nc5 {[%emt 0:5:6]} 30. Rb1 {[%emt 0:0:10]} Rc6 {[%emt 0:6:35]} 31. Ke2 {[%emt 0:3:42]} Rcc8 {[%emt 0:3:50]} 32. a5 {[%emt 0:3:28]} Nd7 {[%emt 0:0:6]} 33. Kd3 {[%emt 0:1:47]} Ne5+ {[%emt 0:1:27]} 34. Kc3 {[%emt 0:0:15]} f5 {[%emt 0:0:40]} 35. exf5 {[%emt 0:0:32]} gxf5 {[%emt 0:0:3]} 36. f4 {[%emt 0:4:11][%cal Ob1e1] [#] and Re1! should not be overlooked} Nc6 {[%emt 0:2:11]} 37. Re1 {[%emt 0:4:0]} Kf7 {[%emt 0:0:40]} 38. Nc2 {[%emt 0:2:52]} d5 {[%emt 0:1:27]} 39. cxd5 {[%emt 0:1:56]} (39. Nd4 $11 Nxd4 40. Rxd4 )Rxd5 $17 {[%emt 0:2:20]} 40. Rxd5 {[%emt 0:0:19]} Ne7+ {[%emt 0:0:58]} 41. Kb2 {[%emt 0:7:35]} Nxd5 {[%emt 0:0:21][%mdl 4096] Endgame KRN-KRN} 42. g3 {[%emt 0:0:21]} Rd8 {[%emt 0:13:54]} (42... Rg8 $15 43. Nd4 Rxg3 44. Nxe6 Kf6 )43. Ne3 $11 {[%emt 0:3:26] The position is equal.} Nb4 {[%emt 0:2:53]} 44. Kc3 {[%emt 0:1:22]} Na2+ {[%emt 0:4:5]} 45. Kb2 {[%emt 0:0:7]} Nb4 {[%emt 0:0:31]} 46. Kc3 {[%emt 0:1:31]} Na2+ {[%emt 0:0:16]} 47. Kb2 {[%emt 0:0:13]} Nb4 {[%emt 0:0:13] Weighted Error Value: White=0.07 (flawless) /Black=0.06 (flawless)   Mistake:       	White=1     	Black=1      Inaccurate:     	White=1     	Black=1      OK:         	White=13    	Black=6} 1/2-1/2